[Event "1st Semana Santa Torrevieja 2022"]
[Site "Torrevieja Alicante"]
[Date "2022.04.16"]
[Round "7.12"]
[White "Sochacki, Christophe"]
[Black "Cruz, Filemon"]
[Result "1-0"]
[ECO "C16"]
[WhiteElo "2485"]
[BlackElo "2310"]
[Annotator "TA"]
[PlyCount "83"]
[EventDate "2022.04.12"]
[EventType "swiss"]
[EventCountry "ESP"]
[SourceTitle "playchess.com"]
[Source "ChessBase"]
[SourceQuality "1"]
[TimeControl "5400+30"]

{[%evp 12,83,36,24,47,50,63,55,60,61,49,46,46,34,50,6,89,87,87,72,91,41,101,76,194,215,208,186,208,185,204,189,178,105,171,31,200,195,192,200,195,204,203,195,194,179,181,161,466,440,587,581,553,579,570,399,248,243,487,497,485,430,446,454,444,420,535,536,507,465,1032,453,1219,1184]} 1. d4 {[%emt 0:00:04]} e6 {[%emt 0:12:18]} 2. e4 {[%emt 0:00:25]} d5 {[%emt 0:00:31]} 3. Nc3 {[%emt 1:31:31]} Bb4 {[%emt 0:01:39]} 4. e5 {[%emt 0:00:00]} b6 {[%emt 0:00:44]} 5. a3 {[%emt 0:00:00]} Bf8 {[%emt 0:02:51]} 6. f4 {[%emt 0:00:00]} Ne7 {[%emt 0:01:05]} 7. Nf3 {[%emt 0:00:00]} Qd7 {[%emt 0:02:37] C16: French: 3 Nc3 Bb4 4 e5: Lines without ...c5.} 8. Be3 {[%emt 0:00:00]} h5 {[%emt 0:01:38]} 9. Bf2 {[%emt 0:00:00]} Ba6 {[%emt 0:01:09] White is slightly better.} 10. Bxa6 {[%emt 0:00:00]} Nxa6 {[%emt 0:00:09]} 11. Qe2 {[%emt 0:00:00]} Nb8 {[%emt 0:00:31] [#]} 12. O-O-O $146 {[%emt 0:00:00]} ({Predecessor:} 12. g3 Nbc6 13. h3 Ng6 14. Be3 Nce7 15. O-O-O Nf5 16. Bf2 Be7 17. Qd2 O-O-O 18. g4 hxg4 19. hxg4 Rxh1 20. Rxh1 {½-½ (31) Lanc,A (2385)-Mokry,K (2490) Trnava 1985}) 12... Nbc6 {[%emt 0:01:57]} 13. h3 {[%emt 0:00:00]} a6 {[%emt 0:02:50]} (13... Ng6 $11 {remains equal.}) 14. g4 $16 {[%emt 0:00:00]} b5 {[%emt 0:00:09]} 15. Ng5 {[%emt 0:00:00]} g6 {[%emt 0:04:14]} 16. Kb1 {[%emt 0:00:00] 0x0.001e7f237ef4dp-1022s more active pieces. The black rooks are badly placed.} ({Better is} 16. Be3 $16) 16... Rb8 {[%emt 0:05:13]} (16... Na5 $1 $14) 17. b3 {[%emt 0:00:00]} Nc8 {[%emt 0:04:20]} (17... a5 $16) 18. f5 $18 {[%emt 0:00:00]} Bxa3 {[%emt 0:04:40]} 19. Qf3 {[%emt 0:00:00] aiming for fxg6.} Nd8 {[%emt 0:01:55][%cal Rg6f5]} 20. fxg6 {[%emt 0:00:00]} fxg6 {[%emt 0:00:29]} 21. gxh5 $1 {[%emt 0:00:00]} (21. Qf6 $6 Rg8 $16) 21... Rxh5 {[%emt 0:05:50] [#]} 22. Qf6 {[%emt 0:00:00]} (22. h4 $1 $18) 22... Ne7 {[%emt 0:00:19] [#]} (22... Rh6 $16 {keeps fighting.}) 23. Rd3 {[%emt 0:00:00]} (23. Be1 $1 $18) 23... Qc6 $2 {[%emt 0:04:25] This move loses the game for Black.} (23... Rh6 $1 $14) 24. Ne2 {[%emt 0:00:00]} (24. Rf3 $6 Kd7 $16) 24... Kd7 {[%emt 0:04:30]} 25. Nf4 {[%emt 0:00:00][%csl LRg6,LRh5]} a5 {[%emt 0:00:48]} 26. Be1 {[%emt 0:00:00]} (26. Nxg6 Nf5 $16) 26... Nf5 {[%emt 0:06:34] White must now prevent ...Be7.} 27. Nxh5 {[%emt 0:00:00]} gxh5 {[%emt 0:00:48]} 28. Rf1 {[%emt 0:00:00] Chess con chili.} (28. Bxa5 Be7 29. Qg6 b4 $15) 28... Be7 {[%emt 0:02:40]} 29. Qg6 $36 {[%emt 0:00:00][%mdl 2048] Strongly threatening Rc3. Black is under strong pressure.} a4 $2 {[%emt 0:00:54]} (29... Bxg5 {is more resistant.} 30. Qxg5 Kc8 31. Bxa5 (31. Qxh5 Ra8 $16) 31... b4) 30. Rxf5 {[%emt 0:01:03]} (30. Rc3 Qa6 31. b4 (31. Rxf5 b4 $14) 31... Nxd4 $16) 30... exf5 {[%emt 0:00:44]} 31. Qxf5+ {[%emt 0:00:03]} Ne6 {[%emt 0:00:17] [#]} 32. Rc3 $1 {[%emt 0:00:07]} Rf8 {[%emt 0:04:05]} 33. Qxe6+ {[%emt 0:02:00]} (33. Rxc6 Rxf5 34. Rxe6 Rf1 $17) 33... Qxe6 {[%emt 0:00:55]} 34. Rxc7+ $1 {[%emt 0:00:02]} ({Worse is} 34. Nxe6 Kxe6 35. Ka2 Rf1 $17) 34... Ke8 $2 {[%emt 0:01:29]} (34... Kxc7 {was called for.} 35. Nxe6+ Kb6 36. Nxf8 Bxf8 37. bxa4 bxa4) 35. Nxe6 {[%emt 0:00:02]} Rf1 {[%emt 0:00:08] [#]} 36. bxa4 $1 {[%emt 0:00:04]} Rxe1+ {[%emt 0:00:09][%mdl 4096] Endgame KRB-KRN} 37. Ka2 {[%emt 0:00:09]} bxa4 {[%emt 0:00:06]} 38. Ra7 {[%emt 0:01:34]} Re2 {[%emt 0:00:58]} 39. Nc7+ {[%emt 0:00:09] White is clearly winning.} Kf8 {[%emt 0:02:53]} 40. Nxd5 {[%emt 0:00:06]} Bd8 {[%emt 0:00:18]} (40... Bg5 $142 41. Kb2 h4 42. Rxa4 Kg7) 41. Kb2 {[%emt 0:00:27]} (41. Ra8 $142 Ke8 42. Kb2) 41... Rh2 {[%emt 0:00:30]} (41... Bg5 $142 42. Rxa4 h4) 42. Ra8 {[%emt 0:01:09] Weighted Error Value: White=0.31/Black=0.61} 1-0

[Event "1st Semana Santa Torrevieja 2022"]
[Site "Torrevieja Alicante"]
[Date "2022.04.16"]
[Round "7.13"]
[White "Garcia Martin, Marta"]
[Black "Gomez Ledo, Roberto Carlos"]
[Result "0-1"]
[ECO "C54"]
[WhiteElo "2299"]
[BlackElo "2471"]
[Annotator "TA"]
[PlyCount "140"]
[EventDate "2022.04.12"]
[EventType "swiss"]
[EventCountry "ESP"]
[SourceTitle "playchess.com"]
[Source "ChessBase"]
[SourceQuality "1"]
[TimeControl "5400+30"]

{[%evp 11,140,12,16,16,25,14,22,25,27,24,28,15,18,14,22,9,17,4,13,9,27,9,70,69,66,54,52,17,97,12,8,17,3,18,18,0,0,-5,0,0,0,0,0,0,0,-5,0,0,0,0,0,-39,-35,-34,-23,-20,-23,-28,-14,-22,-13,-17,-8,-8,-8,-8,-8,-10,-8,-8,0,0,0,-8,0,0,0,0,0,0,0,-8,-6,-8,0,-8,-8,-12,-12,-18,-18,-22,-22,-22,-22,-22,-8,-8,0,0,0,-8,-8,-10,-6,-39,-17,-86,-75,-79,-71,-230,-213,-193,-195,-308,-287,-29970,-29971,-29971,-29972,-29974,-29975,-29977,-29976,-29978,-29979,-29979,-29980,-29979,-29962]} 1. e4 {[%emt 0:00:04] Roiz,M} e5 {[%emt 0:00:10]} 2. Nf3 {[%emt 0:00:10]} Nc6 {[%emt 0:00:14]} 3. Bc4 {[%emt 0:00:12]} Bc5 {[%emt 0:00:19]} 4. d3 {[%emt 0:00:24]} Nf6 {[%emt 0:00:13]} 5. O-O {[%emt 0:00:10]} d6 {[%emt 0:01:23]} 6. c3 {[%emt 0:00:16]} a6 {[%emt 0:02:22]} 7. a4 {[%emt 0:01:04] C54: Giuoco Piano: 4 c3 Nf6, main lines with 5 d4 and 5 d3.} Ba7 {[%emt 0:00:34]} 8. Re1 {[%emt 0:00:29]} h6 {[%emt 0:00:22]} 9. Nbd2 {[%emt 0:00:12] The position is equal.} O-O {[%emt 0:00:24]} 10. h3 {[%emt 0:00:11]} Re8 {[%emt 0:00:41]} 11. b4 {[%emt 0:00:50] 11.b4 scores better than 11.Nf1.} Ne7 {[%emt 0:02:38]} 12. Qb3 {[%emt 0:10:20]} Rf8 {[%emt 0:00:48][%cal Ob7b5]} 13. d4 {[%emt 0:05:16]} exd4 {[%emt 0:09:09]} 14. cxd4 {[%emt 0:00:17]} d5 {[%emt 0:00:43]} 15. exd5 {[%emt 0:00:10]} Nexd5 {[%emt 0:00:31] [#]} 16. Ba3 $146 {[%emt 0:26:30] Hoping for b5.} ({Predecessor:} 16. b5 Be6 17. bxa6 bxa6 18. Ba3 Re8 19. Ne5 Nf4 20. Ndf3 Bxc4 21. Qxc4 Qd5 22. Qxd5 N6xd5 {0-1 (44) Vachier Lagrave,M (2796)-Jakovenko,D (2721) Palma de Mallorca 2017 CBM 182 [Roiz,M]}) 16... c6 {[%emt 0:04:14]} ({Black should try} 16... Nb6 $1 $11) 17. b5 $14 {[%emt 0:02:23] Strongly threatening bxa6.} Re8 {[%emt 0:00:36]} 18. bxc6 {[%emt 0:03:53]} bxc6 {[%emt 0:00:10]} 19. Ne5 {[%emt 0:08:59]} Qc7 {[%emt 0:03:20]} (19... Bxd4 $11 {keeps the balance.} 20. Nxc6 Bxa1 21. Nxd8 Rxe1+ 22. Nf1 Ra7 $1) 20. Ndf3 {[%emt 0:00:47]} (20. Qd3 $16) 20... Bxd4 $11 {[%emt 0:11:02]} 21. Nxd4 {[%emt 0:02:43]} Rxe5 {[%emt 0:00:21]} 22. Rxe5 {[%emt 0:03:48]} Qxe5 {[%emt 0:00:19]} 23. Rd1 {[%emt 0:00:03]} Bd7 {[%emt 0:05:38]} 24. Qb7 {[%emt 0:09:00]} Qb8 {[%emt 0:02:40]} 25. Rb1 {[%emt 0:01:19]} Qxb7 {[%emt 0:05:13]} 26. Rxb7 {[%emt 0:00:06]} a5 {[%emt 0:01:43]} 27. Bd6 {[%emt 0:07:12]} Be8 {[%emt 0:10:43]} 28. Nb3 {[%emt 0:04:57]} Nc3 {[%emt 0:05:27]} 29. Nc5 {[%emt 0:05:18]} Nfe4 {[%emt 0:01:29]} 30. Nxe4 {[%emt 0:00:15]} Nxe4 {[%emt 0:00:05]} 31. Rb8 {[%emt 0:02:22]} Rxb8 {[%emt 0:00:18]} 32. Bxb8 $15 {[%emt 0:00:04][%mdl 4096] Endgame KBB-KBN} Nc5 {[%emt 0:01:12]} 33. Bc7 {[%emt 0:00:15]} Nxa4 {[%emt 0:00:13]} 34. Bxa5 {[%emt 0:00:19]} Nc5 {[%emt 0:01:12]} 35. f3 {[%emt 0:01:58]} Nd7 {[%emt 0:01:26]} 36. Kf2 {[%emt 0:00:59]} g6 {[%emt 0:02:01]} 37. g4 {[%emt 0:01:44]} Kg7 {[%emt 0:00:20]} 38. Bc3+ {[%emt 0:00:13] This bishop pair is nice.} f6 {[%emt 0:00:07]} 39. h4 {[%emt 0:01:47]} Bf7 {[%emt 0:00:08]} 40. Be2 {[%emt 0:02:07]} Kf8 {[%emt 0:01:28]} 41. Bd2 {[%emt 0:01:12]} h5 {[%emt 0:00:40]} 42. Bb4+ {[%emt 0:00:38]} Ke8 {[%emt 0:00:34]} 43. Ke3 {[%emt 0:00:25]} Nb6 {[%emt 0:00:22] White must now prevent ...Nd5+.} 44. Kd4 {[%emt 0:00:23]} Nd5 {[%emt 0:00:36]} 45. Bd2 {[%emt 0:00:08]} Nc7 {[%emt 0:00:15]} 46. Kc5 {[%emt 0:01:03]} Kd7 {[%emt 0:00:20]} 47. Kd4 {[%emt 0:00:31]} Bd5 {[%emt 0:00:55]} 48. gxh5 {[%emt 0:00:25]} gxh5 {[%emt 0:00:06]} 49. f4 {[%emt 0:01:09]} Ne6+ {[%emt 0:00:17]} 50. Ke3 {[%emt 0:00:00]} Ng7 {[%emt 0:00:06]} 51. Bb4 {[%emt 0:00:26]} Nf5+ {[%emt 0:01:18]} 52. Kf2 {[%emt 0:00:29]} Bf7 {[%emt 0:00:52]} 53. Bc3 {[%emt 0:00:02]} Nd6 {[%emt 0:01:02] aiming for ...Ne4+.} 54. Bf3 {[%emt 0:00:44] Inhibits Ne4+.} Ne8 {[%emt 0:03:08]} 55. Ke3 {[%emt 0:00:29]} c5 {[%emt 0:00:48][%cal Bc6c5,Bc5c4][%mdl 32]} 56. Kd3 {[%emt 0:00:45]} Ke7 {[%emt 0:00:12]} 57. Bb2 {[%emt 0:00:24]} Nd6 {[%emt 0:05:30]} 58. Bd1 {[%emt 0:00:38]} c4+ {[%emt 0:01:32]} 59. Ke3 {[%emt 0:00:26]} (59. Kd2 $1 $11) 59... Nf5+ $17 {[%emt 0:00:15]} 60. Ke4 {[%emt 0:00:29]} Bg6 {[%emt 0:01:17]} ({But not} 60... Nxh4 $6 61. f5 $11) 61. Kf3 $2 {[%emt 0:00:35] This move loses the game for White.} (61. Bd4 $17 {was worth a try.}) 61... Nxh4+ $19 {[%emt 0:00:10]} 62. Kf2 {[%emt 0:00:27] [#]} Nf5 $1 {[%emt 0:00:35]} 63. Bc2 {[%emt 0:00:13]} (63. Kg1 $142) 63... Ke6 {[%emt 0:00:24]} 64. Bxf5+ $2 {[%emt 0:00:12]} (64. Be4 $19) 64... Bxf5 {[%emt 0:00:10] KB-KB. Black mates.} 65. Kg3 {[%emt 0:00:37]} Bg4 {[%emt 0:00:31]} 66. Bc3 {[%emt 0:00:51]} f5 {[%emt 0:00:34]} 67. Kf2 {[%emt 0:00:38]} Kd5 {[%emt 0:00:12]} 68. Ke3 {[%emt 0:00:17]} h4 {[%emt 0:00:18][%cal Bh5h4,Bh4h3][%mdl 32]} 69. Be1 {[%emt 0:00:13]} h3 {[%emt 0:00:11]} 70. Bg3 {[%emt 0:00:02]} Kc5 {[%emt 0:20:24] Weighted Error Value: White=0.11 (very precise) /Black=0.07 (flawless)} 0-1

[Event "1st Semana Santa Torrevieja 2022"]
[Site "Torrevieja Alicante"]
[Date "2022.04.16"]
[Round "7.14"]
[White "Camacho Collados, Marcos"]
[Black "Perea Fruet, Lorenzo"]
[Result "1-0"]
[ECO "D05"]
[WhiteElo "2462"]
[BlackElo "2185"]
[Annotator "TA"]
[PlyCount "22"]
[EventDate "2022.04.12"]
[EventType "swiss"]
[EventCountry "ESP"]
[SourceTitle "playchess.com"]
[Source "ChessBase"]
[SourceQuality "1"]
[TimeControl "5400+30"]

{[%evp 11,22,4,8,7,19,7,22,18,18,15,63,62,63]} 1. Nf3 {[%emt 0:00:03]} c5 {[%emt 0:00:06]} 2. e3 {[%emt 0:00:08]} e6 {[%emt 0:01:39]} 3. b3 {[%emt 0:00:54]} Nf6 {[%emt 0:00:39]} 4. Bb2 {[%emt 0:00:09]} Nc6 {[%emt 0:00:06]} 5. d4 {[%emt 0:00:22]} d5 {[%emt 0:00:05]} 6. Nbd2 {[%emt 0:00:13]} Bd6 {[%emt 0:00:19]} 7. dxc5 {[%emt 0:00:26] D05: Colle System with ...e6.} Bxc5 {[%emt 0:00:06]} 8. Bd3 {[%emt 0:00:39]} O-O {[%emt 0:03:12]} 9. a3 {[%emt 0:00:09]} a5 {[%emt 0:01:46]} 10. O-O {[%emt 0:00:23] [#]} d4 $146 {[%emt 0:00:51]} (10... b6 $11 {feels stronger.}) ({Predecessor:} 10... Bd7 11. c4 Qe7 12. Qc2 h6 13. Bxf6 gxf6 14. cxd5 exd5 15. Bf5 Be6 16. Bxe6 fxe6 {½-½ (66) Dominguez Perez,L (2763)-Abdusattorov,N (2608) chess24.com INT 2020}) 11. exd4 $14 {[%emt 0:01:36]} Nxd4 {[%emt 0:15:42] Black got outplayed after the opening.  Weighted Error Value: White=0.04 (flawless) /Black=0.11 (very precise)} 1-0

[Event "1st Semana Santa Torrevieja 2022"]
[Site "Torrevieja Alicante"]
[Date "2022.04.16"]
[Round "7.15"]
[White "Aagaard, Jacob"]
[Black "Makkar, Rajat"]
[Result "1/2-1/2"]
[ECO "A34"]
[WhiteElo "2465"]
[BlackElo "2252"]
[Annotator "TA"]
[PlyCount "33"]
[EventDate "2022.04.12"]
[EventType "swiss"]
[EventCountry "ESP"]
[SourceTitle "playchess.com"]
[Source "ChessBase"]
[SourceQuality "1"]
[TimeControl "5400+30"]

{[%evp 16,33,0,0,0,0,0,0,0,0,0,0,0,0,0,-11,-11,-17,-13,-62]} 1. c4 {[%emt 0:00:24]} c5 {[%emt 0:00:25]} 2. Nf3 {[%emt 0:00:39]} Nf6 {[%emt 0:00:21][%cal Bg8f6,Bf6d5,Bd5b4,Bb4d3,Bd3f4][%mdl 32]} 3. Nc3 {[%emt 0:00:11]} d5 {[%emt 0:00:46]} 4. cxd5 {[%emt 0:00:25]} Nxd5 {[%emt 0:00:09]} 5. e4 {[%emt 0:01:20]} Nb4 {[%emt 0:00:07]} 6. Bc4 {[%emt 0:00:08]} Nd3+ {[%emt 0:00:08]} 7. Ke2 {[%emt 0:00:13]} Nf4+ {[%emt 0:00:12]} 8. Kf1 {[%emt 0:00:09]} Nd3 {[%emt 0:00:21]} 9. Ke2 {[%emt 0:01:13] The position is equal.} Nf4+ {[%emt 0:00:20] A34: Symmetrical English: 2 Nc3, lines with ...d5.} 10. Kf1 {[%emt 0:00:08] [#] Black must now prevent d4.} Nd3 {[%emt 0:00:10] 10...e6 is becoming the main line.} 11. Qe2 {[%emt 0:00:20]} Nxc1 {[%emt 0:00:24]} 12. Rxc1 {[%emt 0:00:01][%cal Od2d4]} e6 {[%emt 0:00:58]} 13. h4 {[%emt 0:01:17]} Nc6 {[%emt 0:01:27]} 14. e5 {[%emt 0:02:18]} Bd7 {[%emt 0:03:25] [#]} 15. h5 $146 {[%emt 0:09:38]} ({Predecessor:} 15. Qe3 Qb6 16. Kg1 Nd4 17. Bd3 Be7 18. h5 Bc6 19. Be4 O-O-O 20. Bxc6 Qxc6 21. Rh3 Kb8 22. Ne2 Nf5 23. Qf4 {0-1 (39) So,W (2772)-Paravyan,D (2617) Chess.com INT 2022}) 15... h6 {[%emt 0:02:25]} 16. a3 {[%emt 0:23:42]} Qb6 {[%emt 0:06:22]} 17. d3 {[%emt 0:56:54] Weighted Error Value: White=0.02 (flawless) /Black=0.00 (flawless)} (17. Rh3 $11 {is more appropriate.}) 1/2-1/2

[Event "1st Semana Santa Torrevieja 2022"]
[Site "Torrevieja Alicante"]
[Date "2022.04.16"]
[Round "7.16"]
[White "Gonzalez Guedes, Iyan"]
[Black "Kosakowski, Jakub"]
[Result "1/2-1/2"]
[ECO "B10"]
[WhiteElo "2251"]
[BlackElo "2442"]
[Annotator "TA"]
[PlyCount "26"]
[EventDate "2022.04.12"]
[EventType "swiss"]
[EventCountry "ESP"]
[SourceTitle "playchess.com"]
[Source "ChessBase"]
[SourceQuality "1"]
[TimeControl "5400+30"]

{[%evp 9,26,-8,20,22,25,18,21,24,33,16,52,34,46,48,57,25,41,3,23]} 1. e4 {[%emt 0:00:08]} c6 {[%emt 0:00:08]} 2. Nf3 {[%emt 0:01:00]} d5 {[%emt 0:00:13]} 3. d3 {[%emt 0:00:05]} dxe4 {[%emt 0:02:25]} 4. dxe4 {[%emt 0:00:09]} Qxd1+ {[%emt 0:00:15]} 5. Kxd1 {[%emt 0:00:01]} Bg4 {[%emt 0:00:20]} 6. Be2 {[%emt 0:00:32] B10: Caro-Kann: 2 d3 and 2 c4.} Nf6 {[%emt 0:06:58]} 7. Nbd2 {[%emt 0:01:38]} Nbd7 {[%emt 0:00:47]} 8. Ne1 {[%emt 0:01:21]} Bxe2+ {[%emt 0:01:03]} 9. Kxe2 {[%emt 0:00:02] [#]} g5 $146 {[%emt 0:00:37]} ({Predecessor:} 9... e5 10. a4 a5 11. f3 Nc5 12. Nc4 Nfd7 13. Bd2 b6 14. b3 Kd8 15. Be3 Kc7 {1-0 (40) Kovalev,V (2634)-Halkias,S (2556) Chess.com INT 2021}) 10. Nd3 {[%emt 0:06:09]} h5 {[%emt 0:07:30]} 11. f3 {[%emt 0:10:49]} h4 {[%emt 0:07:45]} 12. h3 {[%emt 0:14:06]} Nh5 {[%emt 0:03:09] [#] ...Ng3+ is the strong threat.} 13. Kf2 {[%emt 0:05:06]} e5 {[%emt 0:27:53] Weighted Error Value: White=0.10 (very precise) /Black=0.10 (very precise)} 1/2-1/2

[Event "1st Semana Santa Torrevieja 2022"]
[Site "Torrevieja Alicante"]
[Date "2022.04.17"]
[Round "8.1"]
[White "Yuffa, Daniil"]
[Black "Grigoryan, Karen H."]
[Result "1-0"]
[ECO "D61"]
[WhiteElo "2576"]
[BlackElo "2636"]
[Annotator "TA"]
[PlyCount "77"]
[EventDate "2022.04.12"]
[EventType "swiss"]
[EventCountry "ESP"]
[SourceTitle "playchess.com"]
[Source "ChessBase"]
[SourceQuality "1"]
[TimeControl "5400+30"]

{[%evp 18,77,25,16,55,59,68,65,64,70,89,21,76,47,79,0,113,114,116,113,393,381,315,378,380,349,427,416,421,412,421,403,557,541,680,535,547,536,747,731,681,525,504,496,633,633,633,193,607,633,621,629,622,620,878,878,863,829,868,865,1138,720]} 1. d4 {[%emt 1:31:00]} d5 {[%emt 0:02:11]} 2. c4 {[%emt 0:00:00]} e6 {[%emt 0:00:05]} 3. Nf3 {[%emt 0:00:00]} a6 {[%emt 0:00:08]} 4. Bg5 {[%emt 0:00:00]} Nf6 {[%emt 0:00:06]} 5. e3 {[%emt 0:00:00]} Be7 {[%emt 0:00:06]} 6. Nc3 {[%emt 0:00:00]} O-O {[%emt 0:00:07]} 7. Qc2 {[%emt 0:00:00]} Nbd7 {[%emt 0:00:37]} 8. c5 {[%emt 0:00:00]} c6 {[%emt 0:01:19]} 9. Bd3 {[%emt 0:00:00]} h6 {[%emt 0:09:10]} 10. Bf4 {[%emt 0:00:00]} Nh5 {[%emt 0:01:45] [#] D61: Queen's Gambit Declined: Classical: 7 Qc2.} 11. Be5 $146 {[%emt 0:00:00]} ({Predecessor:} 11. O-O g5 12. Be5 f5 13. g4 Ng7 14. b4 Nf6 15. Bxf6 Bxf6 16. Ne5 Bxe5 17. dxe5 d4 18. Na4 {1-0 (36) Potapova,M (2278)-Mezhov,D (1974) Sochi 2019}) 11... f5 {[%emt 0:07:35]} 12. b4 {[%emt 0:00:00]} Nhf6 {[%emt 0:02:00] White is slightly better.} 13. Ne2 {[%emt 0:00:00] &Bianco is much more active. The black rooks are badly placed.} g5 {[%emt 0:21:39] Inhibits Nf4.} 14. Rg1 {[%emt 0:00:00]} ({White should try} 14. h3 $16) 14... Ne4 {[%emt 0:12:35]} (14... Rf7 $11) 15. g4 $16 {[%emt 0:00:00][%cal Oh2h4]} Qe8 {[%emt 0:00:35]} ({Weaker is} 15... fxg4 16. Bxe4 dxe4 17. Qxe4 $1 $16) 16. Nf4 {[%emt 0:00:00]} Nxe5 {[%emt 0:02:00]} ({Resist} 16... gxf4 17. gxf5+ Ng5 18. exf4 Nxe5 19. dxe5 $18 (19. Nxe5 Qh5 $16)) (16... a5 $11 {keeps the balance.}) 17. Nxe5 {[%emt 0:00:00] Nfg6 is the strong threat.} gxf4 {[%emt 0:10:59]} 18. gxf5+ {[%emt 0:00:00][%mdl 64] Discovered Attack} Kh7 $2 {[%emt 0:00:26][%mdl 8192] [#] This move loses the game for Black.} (18... Kh8 $16) 19. f6 $1 $18 {[%emt 0:00:00] Dancing on a razor blade.} Rxf6 {[%emt 0:02:03] [#]} 20. f3 $1 {[%emt 0:00:00][%mdl 64] aiming for Qg2. Pin} Rf5 {[%emt 0:00:46] Strongly threatening ...Bh4+.} 21. fxe4 {[%emt 0:00:00]} Bh4+ {[%emt 0:00:39]} 22. Kf1 {[%emt 0:00:00][%cal Be1f1,Bf1g2,Bg2h1][%mdl 32]} dxe4 {[%emt 0:01:30]} 23. Bxe4 {[%emt 0:00:00]} fxe3+ {[%emt 0:00:13]} 24. Kg2 {[%emt 0:00:00]} Bf2 {[%emt 0:01:13]} 25. Kh1 {[%emt 0:00:00]} Bd7 {[%emt 0:03:20]} 26. Raf1 {[%emt 0:00:00]} Bxg1 {[%emt 0:08:16]} 27. Rxg1 {[%emt 0:00:00]} Qe7 {[%emt 0:04:02]} 28. Qg2 {[%emt 0:00:00] Prevents Rg8.} Qg5 {[%emt 0:00:14]} 29. Nxd7 {[%emt 0:00:30]} Qxg2+ {[%emt 0:00:53]} 30. Rxg2 {[%emt 0:00:18]} Rd8 {[%emt 0:00:26]} 31. Bxf5+ {[%emt 0:01:33]} exf5 {[%emt 0:00:07][%mdl 4096] Endgame KRN-KR} 32. Nf6+ {[%emt 0:01:17]} Kh8 {[%emt 0:00:10]} 33. Kg1 {[%emt 0:00:38] White is clearly winning.} f4 {[%emt 0:06:12]} 34. Rg4 {[%emt 0:00:38]} f3 {[%emt 0:00:25]} 35. Rg3 {[%emt 0:00:31]} f2+ {[%emt 0:01:26]} 36. Kf1 {[%emt 0:00:12]} Rf8 {[%emt 0:00:18]} 37. Rf3 {[%emt 0:00:37]} Rf7 {[%emt 0:02:19]} 38. Ke2 {[%emt 0:00:27]} Re7 {[%emt 0:00:37]} 39. Rg3 {[%emt 0:00:19] Weighted Error Value: White=0.22 (precise) /Black=0.61} 1-0